fUSD/lending_fUSD_20250110
["ID","MTS","AMOUNT","RATE_DAILY","PERIOD"]
[348388705,1736497842845,-491.74730206,9.999e-05,2]
[348388706,1736497842855,-667.93,9.999e-05,2]
[348388707,1736497842864,-500.0,9.999e-05,2]
[348388708,1736497842874,-500.0,9.999e-05,2]
[348388709,1736497842883,-500.0,9.999e-05,2]
[348388710,1736497842892,-500.0,9.999e-05,2]
[348388711,1736497842902,-500.0,9.999e-05,2]
[348388712,1736497842911,-500.0,9.999e-05,2]
[348388713,1736497842921,-502.79720333,9.999e-05,2]
[348388714,1736497842930,-500.0,9.999e-05,2]
[348388715,1736497842939,-501.33627234,9.999e-05,2]
[348388716,1736497842948,-356.17375403,9.999e-05,2]
[348388717,1736497842958,-547.73,9.999e-05,2]
[348388718,1736497842967,-521.77992438,9.999e-05,2]
[348388719,1736497842977,-504.36883084,9.999e-05,2]
[348388720,1736497842987,-500.0,9.999e-05,2]
[348388721,1736497842996,-502.92716389,9.999e-05,2]
[348388722,1736497843005,-501.29695914,9.999e-05,2]
[348388723,1736497843014,-500.0,9.999e-05,2]
[348388724,1736497843024,-607.28,9.999e-05,2]
[348388725,1736497843033,-502.4892401,9.999e-05,2]
[348388726,1736497843043,-500.0,9.999e-05,2]
[348388727,1736497843053,-501.62218849,9.999e-05,2]
[348388728,1736497843062,-505.8999662,9.999e-05,2]
[348388729,1736497843072,-500.0,9.999e-05,2]
[348388730,1736497843084,-502.50086655,9.999e-05,2]
[348388731,1736497843093,-500.0,9.999e-05,2]
[348388732,1736497843103,-506.28971264,9.999e-05,2]
[348388733,1736497843113,-500.0,9.999e-05,2]
[348388734,1736497843122,-500.0,9.999e-05,2]
[348388735,1736497843132,-506.33089824,9.999e-05,2]
[348388736,1736497843142,-500.0,9.999e-05,2]
[348388737,1736497843152,-1739.95,9.999e-05,2]
[348388738,1736497843162,-500.0,9.999e-05,2]
[348388739,1736497843174,-534.7558338,9.999e-05,2]
[348388740,1736497843184,-500.0,9.999e-05,2]
[348388741,1736497843195,-501.48091697,9.999e-05,2]
[348388742,1736497843205,-500.0,9.999e-05,2]
[348388743,1736497843216,-570.02,9.999e-05,2]
[348388744,1736497843227,-509.04147935,9.999e-05,2]
[348388745,1736497843238,-472.48458383,9.999e-05,2]
[348388746,1736497843248,-515.92159138,9.999e-05,2]
[348388747,1736497843257,-500.0,9.999e-05,2]
[348388748,1736497843268,-516.36724962,9.999e-05,2]
[348388749,1736497843277,-500.0,9.999e-05,2]
[348388750,1736497843286,-508.32434252,9.999e-05,2]
[348388751,1736497843296,-609.11,9.999e-05,2]
[348388752,1736497843305,-500.0,9.999e-05,2]
[348388753,1736497843314,-500.0,9.999e-05,2]
[348388754,1736497843323,-500.0,9.999e-05,2]
[348388755,1736497843332,-500.0,9.999e-05,2]
[348388756,1736497843341,-500.0,9.999e-05,2]
[348388757,1736497843353,-500.0,9.999e-05,2]
[348388758,1736497843362,-500.0,9.999e-05,2]
[348388759,1736497843371,-500.0,9.999e-05,2]
[348388760,1736497843380,-500.0,9.999e-05,2]
[348388761,1736497843390,-500.0,9.999e-05,2]
[348388762,1736497843399,-501.61734071,9.999e-05,2]
[348388763,1736497843408,-500.0,9.999e-05,2]
[348388764,1736497843418,-502.4254496,9.999e-05,2]
[348388765,1736497843428,-508.65560716,9.999e-05,2]
[348388766,1736497843437,-500.0,9.999e-05,2]
[348388767,1736497843448,-500.0,9.999e-05,2]
[348388768,1736497843457,-500.0,9.999e-05,2]
[348388769,1736497843466,-500.0,9.999e-05,2]
[348388770,1736497843476,-500.0,9.999e-05,2]
[348388771,1736497843486,-500.0,9.999e-05,2]
[348388772,1736497843496,-500.0,9.999e-05,2]
[348388773,1736497843506,-500.65795346,9.999e-05,2]
[348388774,1736497843515,-216.23,9.999e-05,2]
[348388775,1736497843524,-500.0,9.999e-05,2]
[348388776,1736497843533,-639.94682435,9.999e-05,2]
[348388777,1736497843542,-500.0,9.999e-05,2]
[348388778,1736497843552,-500.0,9.999e-05,2]
[348388779,1736497843561,-500.0,9.999e-05,2]
[348388780,1736497843570,-500.0,9.999e-05,2]
[348388781,1736497843579,-500.0,9.999e-05,2]
[348388782,1736497843589,-500.0,9.999e-05,2]
[348388783,1736497843599,-500.0,9.999e-05,2]
[348388784,1736497843609,-564.41,9.999e-05,2]
[348388785,1736497843618,-500.0,9.999e-05,2]
[348388786,1736497843628,-500.0,9.999e-05,2]
[348388787,1736497843637,-235.40787081,9.999e-05,2]
[348388788,1736497843647,-500.0,9.999e-05,2]
[348388789,1736497843656,-500.0,9.999e-05,2]
[348388790,1736497843666,-500.0,9.999e-05,2]
[348388791,1736497843675,-500.0,9.999e-05,2]
[348388792,1736497843684,-500.0,9.999e-05,2]
[348388793,1736497843693,-603.58,9.999e-05,2]
[348388794,1736497843703,-531.3,9.999e-05,2]
[348388795,1736497843712,-409.13144183,9.999e-05,2]
[348388796,1736497843725,-500.0,9.999e-05,2]
[348388797,1736497843735,-500.0,9.999e-05,2]
[348388798,1736497843744,-500.0,9.999e-05,2]
[348388799,1736497843753,-500.0,9.999e-05,2]
[348388800,1736497843763,-500.92485034,9.999e-05,2]
[348388801,1736497843773,-500.0,9.999e-05,2]
[348388802,1736497843782,-500.0,9.999e-05,2]
[348388803,1736497843792,-500.0,9.999e-05,2]
[348388804,1736497843804,-500.0,9.999e-05,2]
[348388805,1736497843814,-500.0,9.999e-05,2]
[348388806,1736497843824,-500.0,9.999e-05,2]
[348388807,1736497843833,-500.0,9.999e-05,2]
[348388808,1736497843843,-520.28,9.999e-05,2]
[348388809,1736497843853,-500.0,9.999e-05,2]
[348388810,1736497843863,-650.89,9.999e-05,2]
[348388811,1736497843872,-500.0,9.999e-05,2]
[348388812,1736497843882,-500.0,9.999e-05,2]
[348388813,1736497843892,-500.64552006,9.999e-05,2]
[348388814,1736497843902,-500.0,9.999e-05,2]
[348388815,1736497843912,-502.84266183,9.999e-05,2]
[348388816,1736497843923,-579.39,9.999e-05,2]
[348388817,1736497843932,-500.0,9.999e-05,2]
[348388818,1736497843941,-500.0,9.999e-05,2]
[348388819,1736497843951,-500.0,9.999e-05,2]
[348388820,1736497843960,-500.0,9.999e-05,2]
[348388821,1736497843969,-500.0,9.999e-05,2]
[348388822,1736497843979,-500.0,9.999e-05,2]
[348388823,1736497843988,-524.31273499,9.999e-05,2]
[348388824,1736497843999,-500.0,9.999e-05,2]
[348388825,1736497844011,-500.0,9.999e-05,2]
[348388826,1736497844020,-500.0,9.999e-05,2]
[348388827,1736497844030,-500.0,9.999e-05,2]
[348388828,1736497844039,-500.0,9.999e-05,2]
[348388829,1736497844049,-494.0,9.999e-05,2]
[348388830,1736497844059,-500.0,9.999e-05,2]
[348388831,1736497844068,-503.65217287,9.999e-05,2]
[348388832,1736497844077,-353.41684419,9.999e-05,2]
[348388833,1736497844087,-513.7181214,9.999e-05,2]
[348388834,1736497844097,-500.0,9.999e-05,2]
[348388835,1736497844106,-500.0,9.999e-05,2]
[348388836,1736497844115,-500.0,9.999e-05,2]
[348388837,1736497844124,-501.24061431,9.999e-05,2]
[348388838,1736497844133,-500.0,9.999e-05,2]
[348388839,1736497844143,-500.0,9.999e-05,2]
[348388840,1736497844152,-500.0,9.999e-05,2]
[348388841,1736497844162,-482.62071834,9.999e-05,2]
[348388842,1736497844171,-500.0,9.999e-05,2]
[348388843,1736497844180,-500.0,9.999e-05,2]
[348388844,1736497844190,-500.0,9.999e-05,2]
[348388845,1736497844199,-500.0,9.999e-05,2]
[348388846,1736497844208,-205.59955707,9.999e-05,2]
[348388847,1736497844218,-221.26168894,0.0001,2]
[348388848,1736497844228,-772.0,0.0001,2]
[348388849,1736497844237,-2621560.29885009,0.0001,2]
[348388850,1736497844551,-1150.0429755,0.0001,2]
[348388851,1736497844586,-502.45473375,9.996e-05,2]
[348388852,1736497844597,-29478.94699336,0.0001,2]
[348388853,1736497844608,-3880.54090701,0.0001,2]
[348388854,1736497845165,-552.99875872,9.997e-05,2]
[348388855,1736497845177,-531.16124128,9.997e-05,2]
[348388856,1736497845186,-184.66148533,0.0001,2]
[348388857,1736497845222,-500.0,9.996e-05,2]
[348388858,1736497845232,-49.73316218,0.0001,2]
[348388859,1736497845250,-395.92311807,0.0001,2]
[348388860,1736497845265,-450.26683782,0.0001,2]
[348388861,1736497845275,-1444.89440864,0.0001,2]
[348388862,1736497845286,-8494.83524485,0.0001,2]
[348388863,1736497845297,-10968.87784998,0.0001,2]
[348388867,1736497845328,-355.72425126,0.0001,2]
[348388868,1736497845372,-315.16441604,9.997e-05,2]
[348388869,1736497845382,-184.83558396,9.997e-05,2]
[348388870,1736497845870,-390.83441604,9.997e-05,2]
[348388871,1736497845879,-500.0,9.997e-05,2]
[348388872,1736497845889,-7172.79827292,0.0001,2]
[348388873,1736497845900,-16969.54342202,0.0001,2]
[348388874,1736497845921,-28805.02705992,0.0001,2]
[348388875,1736497845933,-608.78640333,0.0001,2]
[348388876,1736497845945,-6177.18706618,0.0001,2]
[348388877,1736497846043,-12538.32830649,0.0001,2]
[348388878,1736497846062,-9844.41139733,0.0001,2]
[348388879,1736497846075,-3833.52,0.0001,2]
[348388880,1736497846086,-369.04840763,0.0001,2]
[348388881,1736497846107,-500.0,9.996e-05,2]
[348388882,1736497846115,-24729.92355078,0.0001,2]
[348388883,1736497846127,-6053.01259267,0.0001,2]
[348388884,1736497846157,-732.14528862,0.0001,2]
[348388885,1736497846736,-500.0,9.996e-05,2]
[348388886,1736497846745,-4306.11481978,0.0001,2]
[348388887,1736497846769,-509.84750255,9.997e-05,2]
[348388888,1736497846778,-8971.74549745,0.0001,2]
[348388889,1736497846829,-441.75790001,0.0001,2]
[348388890,1736497846840,-11694.11041374,0.0001,2]
[348388891,1736497846860,-2810.92507554,0.0001,2]
[348388892,1736497870673,185.0,0.0001,4]
[348388896,1736497895903,1202.6,0.0002,120]
[348388901,1736498796606,1083.84,8.219e-05,2]
[348388963,1736499031734,-475.22000005,9.138e-05,2]
[348388964,1736499031747,-554.48999995,9.138e-05,2]
[348388965,1736499031756,-250.0,9.145e-05,2]
[348388966,1736499031767,-300.0,9.165e-05,2]
[348388967,1736499031777,-2895.51000165,9.166e-05,2]
[348388968,1736499031788,-586.2,9.166e-05,2]
[348388969,1736499031799,-983.1350681,9.166e-05,2]
[348388970,1736499031817,-598.93662339,9.166e-05,2]
[348388971,1736499031846,-5779.3637737,9.166e-05,2]
[348388972,1736499031856,-2519.54,9.166e-05,2]
[348388973,1736499031865,-272.75,9.166e-05,2]
[348388974,1736499031874,-178.39,9.166e-05,2]
[348388975,1736499031884,-153.74144462,9.166e-05,2]
[348388976,1736499031893,-1000.0,9.235e-05,2]
[348388977,1736499031903,-739.0,9.8e-05,2]
[348388978,1736499031912,-634.9793,9.896e-05,2]
[348388979,1736499031922,-191.5401,9.897e-05,2]
[348388980,1736499031932,-417.6647,9.899e-05,2]
[348388981,1736499031941,-150.99,9.899e-05,2]
[348388982,1736499031951,-150.0,9.899e-05,2]
[348388983,1736499031961,-226.6917,9.9e-05,2]
[348388984,1736499031971,-3193.36,9.9e-05,2]
[348388985,1736499031980,-299.99,9.9e-05,2]
[348388986,1736499031990,-9093.2,9.9e-05,2]
[348388987,1736499031999,-7688.93,9.9e-05,2]
[348388988,1736499032008,-242.0,9.9e-05,2]
[348388989,1736499032018,-164.39547074,9.973e-05,2]
[348388990,1736499032027,-159.96355027,9.973e-05,2]
[348388991,1736499032036,-200.0,9.991e-05,2]
[348388992,1736499032046,-1794.408,9.995e-05,2]
[348388993,1736499032056,-500.0,9.995e-05,2]
[348388994,1736499032066,-500.0,9.995e-05,2]
[348388995,1736499032075,-500.9347913,9.995e-05,2]
[348388996,1736499032084,-500.0,9.995e-05,2]
[348388997,1736499032093,-503.64590921,9.995e-05,2]
[348388998,1736499032103,-502.70747059,9.995e-05,2]
[348388999,1736499032113,-500.0,9.995e-05,2]
[348389000,1736499032124,-500.0,9.995e-05,2]
[348389001,1736499032134,-500.0,9.995e-05,2]
[348389002,1736499032144,-500.0,9.995e-05,2]
[348389003,1736499032153,-500.0,9.995e-05,2]
[348389004,1736499032162,-503.38872572,9.995e-05,2]
[348389005,1736499032172,-500.0,9.995e-05,2]
[348389006,1736499032181,-500.0,9.995e-05,2]
[348389007,1736499032191,-500.0,9.995e-05,2]
[348389008,1736499032201,-500.0,9.995e-05,2]
[348389009,1736499032210,-501.37483344,9.995e-05,2]
[348389010,1736499032219,-500.0,9.995e-05,2]
[348389011,1736499032228,-500.0,9.995e-05,2]
[348389012,1736499032241,-500.0,9.995e-05,2]
[348389013,1736499032251,-502.0190942,9.995e-05,2]
[348389014,1736499032260,-502.29565548,9.995e-05,2]
[348389015,1736499032270,-500.0,9.995e-05,2]
[348389016,1736499032279,-500.0,9.995e-05,2]
[348389017,1736499032288,-502.56756165,9.995e-05,2]
[348389018,1736499032298,-500.0,9.995e-05,2]
[348389019,1736499032307,-500.0,9.995e-05,2]
[348389021,1736499032316,-500.0,9.995e-05,2]
[348389023,1736499032326,-500.0,9.995e-05,2]
[348389024,1736499032335,-500.0,9.995e-05,2]
[348389026,1736499032345,-500.0,9.995e-05,2]
[348389028,1736499032355,-500.0,9.995e-05,2]
[348389030,1736499032364,-500.0,9.995e-05,2]
[348389031,1736499032372,-500.0,9.995e-05,2]
[348389033,1736499032382,-500.0,9.995e-05,2]
[348389035,1736499032392,-500.0,9.995e-05,2]
[348389037,1736499032401,-500.0,9.995e-05,2]
[348389038,1736499032411,-500.0,9.995e-05,2]
[348389040,1736499032421,-503.1501421,9.995e-05,2]
[348389042,1736499032430,-503.9180861,9.995e-05,2]
[348389043,1736499032439,-500.0,9.995e-05,2]
[348389045,1736499032449,-339.71263343,9.995e-05,2]
[348389047,1736499032461,-500.0,9.995e-05,2]
[348389048,1736499032472,-500.0,9.995e-05,2]
[348389050,1736499032482,-500.0,9.995e-05,2]
[348389052,1736499032492,-500.0,9.995e-05,2]
[348389054,1736499032503,-502.25545207,9.995e-05,2]
[348389056,1736499032513,-500.0,9.995e-05,2]
[348389057,1736499032523,-856.96,9.995e-05,2]
[348389059,1736499032533,-500.0,9.995e-05,2]
[348389061,1736499032544,-500.0,9.995e-05,2]
[348389062,1736499032553,-500.0,9.995e-05,2]
[348389063,1736499032562,-354.77562774,9.995e-05,2]
[348389064,1736499032575,-1701.32437226,9.995e-05,2]
[348389065,1736499032584,-184.99112965,9.995e-05,2]
[348389069,1736499032614,-319.31862899,9.995e-05,2]
[348389072,1736499032624,-180.68137101,9.995e-05,2]
[348389074,1736499032635,-319.31862899,9.995e-05,2]
[348389076,1736499032644,-500.0,9.995e-05,2]
[348389078,1736499032653,-501.465658,9.995e-05,2]
[348389080,1736499032662,-500.0,9.995e-05,2]
[348389082,1736499032672,-709.76,9.995e-05,2]
[348389084,1736499032681,-502.4297246,9.995e-05,2]
[348389086,1736499032690,-982.40398852,9.995e-05,2]
[348389090,1736499032722,-496.44601148,9.995e-05,2]
[348389092,1736499032731,-501.9398778,9.995e-05,2]
[348389094,1736499032740,-141.18871001,9.995e-05,2]
[348389129,1736499037519,-358.81128999,9.995e-05,2]
[348389130,1736499037529,-500.0,9.995e-05,2]
[348389131,1736499037539,-6743.79,9.995e-05,2]
[348389132,1736499037550,-500.0,9.995e-05,2]
[348389133,1736499037560,-500.0,9.995e-05,2]
[348389134,1736499037569,-642.0362101,9.995e-05,2]
[348389135,1736499037578,-500.0,9.995e-05,2]
[348389136,1736499037588,-500.0,9.995e-05,2]
[348389137,1736499037597,-500.0,9.995e-05,2]
[348389138,1736499037607,-500.0,9.995e-05,2]
[348389139,1736499037616,-500.0,9.995e-05,2]
[348389140,1736499037625,-826.48,9.995e-05,2]
[348389141,1736499037635,-501.0925258,9.995e-05,2]
[348389142,1736499037644,-1066.23,9.995e-05,2]
[348389143,1736499037654,-502.32,9.995e-05,2]
[348389144,1736499037663,-3766.46,9.995e-05,2]
[348389145,1736499037672,-872.5,9.995e-05,2]
[348389146,1736499037682,-1207.29,9.995e-05,2]
[348389147,1736499037691,-1620.96,9.995e-05,2]
[348389148,1736499037700,-1831.3,9.995e-05,2]
[348389149,1736499037709,-306.8961115,9.995e-05,2]
[348389150,1736499037719,-388.1041084,9.995e-05,2]
[348389151,1736499037734,-362.5158916,9.995e-05,2]
[348389152,1736499037744,-500.0,9.995e-05,2]
[348389153,1736499037753,-500.0,9.995e-05,2]
[348389154,1736499037762,-516.63,9.995e-05,2]
[348389155,1736499037772,-2813.7,9.995e-05,2]
[348389156,1736499037783,-500.0,9.995e-05,2]
[348389157,1736499037792,-500.0,9.995e-05,2]
[348389158,1736499037802,-873.89,9.995e-05,2]
[348389159,1736499037812,-211.31287039,9.995e-05,2]
[348389160,1736499037822,-500.0,9.995e-05,2]
[348389161,1736499037832,-500.0,9.995e-05,2]
[348389162,1736499037842,-1540.95,9.995e-05,2]
[348389163,1736499037851,-998.88,9.995e-05,2]
[348389164,1736499037860,-500.0,9.995e-05,2]
[348389165,1736499037870,-500.0,9.995e-05,2]
[348389166,1736499037879,-2137.39,9.995e-05,2]
[348389167,1736499038121,-503.08002305,9.995e-05,2]
[348389172,1736499038132,-320.38714847,9.995e-05,2]
[348389174,1736499038141,-783.21,9.995e-05,2]
[348389177,1736499038151,-1228.33,9.995e-05,2]
[348389179,1736499038162,-500.0,9.995e-05,2]
[348389180,1736499038171,-500.0,9.995e-05,2]
[348389181,1736499038181,-501.31742119,9.995e-05,2]
[348389182,1736499038190,-500.0,9.995e-05,2]
[348389183,1736499038200,-500.0,9.995e-05,2]
[348389184,1736499038210,-1031.63,9.995e-05,2]
[348389185,1736499038220,-502.89445788,9.995e-05,2]
[348389186,1736499038229,-1474.35,9.995e-05,2]
[348389187,1736499038238,-500.0,9.995e-05,2]
[348389188,1736499038247,-500.0,9.995e-05,2]
[348389189,1736499038256,-735.34,9.995e-05,2]
[348389190,1736499038266,-504.53485806,9.995e-05,2]
[348389191,1736499038276,-500.0,9.995e-05,2]
[348389192,1736499038285,-500.0,9.995e-05,2]
[348389193,1736499038296,-1290.4,9.995e-05,2]
[348389194,1736499038306,-500.0,9.995e-05,2]
[348389195,1736499038315,-500.0,9.995e-05,2]
[348389196,1736499038324,-504.77013124,9.995e-05,2]
[348389197,1736499038334,-1778.73,9.995e-05,2]
[348389198,1736499038344,-500.0,9.995e-05,2]
[348389199,1736499038354,-930.64,9.995e-05,2]
[348389200,1736499038363,-500.0,9.995e-05,2]
[348389201,1736499038373,-500.0,9.995e-05,2]
[348389202,1736499038383,-500.0,9.995e-05,2]
[348389203,1736499038392,-500.0,9.995e-05,2]
[348389204,1736499038402,-500.0,9.995e-05,2]
[348389205,1736499038411,-279.4781576,9.995e-05,2]
[348389206,1736499038421,-500.0,9.995e-05,2]
[348389207,1736499038430,-981.87,9.995e-05,2]
[348389208,1736499038440,-3412.08,9.995e-05,2]
[348389209,1736499038449,-500.0,9.995e-05,2]
[348389210,1736499038459,-500.0,9.995e-05,2]
[348389211,1736499038472,-767.85,9.995e-05,2]
[348389212,1736499038481,-500.0,9.995e-05,2]
[348389213,1736499038491,-500.0,9.995e-05,2]
[348389214,1736499038500,-337.27492149,9.995e-05,2]
[348389215,1736499038510,-500.0,9.995e-05,2]
[348389216,1736499038520,-500.0,9.995e-05,2]
[348389217,1736499038529,-500.0,9.995e-05,2]
[348389218,1736499038540,-500.0,9.995e-05,2]
[348389219,1736499038549,-1156.01,9.995e-05,2]
[348389220,1736499038559,-1342.85,9.995e-05,2]
[348389221,1736499038568,-679.03,9.995e-05,2]
[348389222,1736499038577,-501.02434077,9.995e-05,2]
[348389223,1736499038586,-634.58836287,9.996e-05,2]
[348389224,1736499038595,-640.1,9.996e-05,2]
[348389225,1736499038604,-500.0,9.996e-05,2]
[348389226,1736499038613,-500.0,9.996e-05,2]
[348389227,1736499038622,-500.0,9.996e-05,2]
[348389228,1736499038630,-500.0,9.996e-05,2]
[348389229,1736499038640,-500.0,9.996e-05,2]
[348389230,1736499038649,-502.79973694,9.996e-05,2]
[348389231,1736499038659,-500.0,9.996e-05,2]
[348389232,1736499038668,-500.0,9.996e-05,2]
[348389233,1736499038677,-356.17375403,9.996e-05,2]
[348389234,1736499038686,-500.0,9.996e-05,2]
[348389235,1736499038695,-500.0,9.996e-05,2]
[348389236,1736499038705,-500.0,9.996e-05,2]
[348389237,1736499038714,-1667.45,9.996e-05,2]
[348389238,1736499038723,-500.0,9.996e-05,2]
[348389239,1736499038733,-583.74,9.996e-05,2]
[348389240,1736499038742,-500.0,9.996e-05,2]
[348389241,1736499038751,-500.0,9.996e-05,2]
[348389242,1736499038760,-500.0,9.996e-05,2]
[348389243,1736499038769,-500.0,9.996e-05,2]
[348389244,1736499038778,-345.06127117,9.996e-05,2]
[348389245,1736499038787,-500.0,9.996e-05,2]
[348389246,1736499038796,-273.240862,9.996e-05,2]
[348389247,1736499038805,-500.0,9.996e-05,2]
[348389248,1736499038815,-500.0,9.996e-05,2]
[348389249,1736499038824,-500.0,9.996e-05,2]
[348389250,1736499038833,-567.47,9.996e-05,2]
[348389251,1736499038843,-500.0,9.996e-05,2]
[348389252,1736499038851,-500.0,9.996e-05,2]
[348389253,1736499038860,-216.23,9.996e-05,2]
[348389254,1736499038870,-500.0,9.996e-05,2]
[348389255,1736499038879,-500.0,9.996e-05,2]
[348389256,1736499038888,-500.0,9.996e-05,2]
[348389257,1736499038897,-500.0,9.996e-05,2]
[348389258,1736499038906,-500.0,9.996e-05,2]
[348389259,1736499038915,-500.0,9.996e-05,2]
[348389260,1736499038924,-500.0,9.996e-05,2]
[348389261,1736499038932,-1052.6,9.996e-05,2]
[348389262,1736499038941,-500.0,9.996e-05,2]
[348389263,1736499038950,-500.0,9.996e-05,2]
[348389264,1736499038959,-615.04723886,9.996e-05,2]
[348389265,1736499038968,-500.0,9.996e-05,2]
[348389266,1736499038977,-500.0,9.996e-05,2]
[348389267,1736499038986,-500.0,9.996e-05,2]
[348389268,1736499038995,-500.0,9.996e-05,2]
[348389269,1736499039004,-501.97664265,9.996e-05,2]
[348389270,1736499039014,-500.0,9.996e-05,2]
[348389271,1736499039023,-500.0,9.996e-05,2]
[348389272,1736499039033,-500.0,9.996e-05,2]
[348389273,1736499039042,-500.0,9.996e-05,2]
[348389274,1736499039051,-248.99168183,9.996e-05,2]
[348389275,1736499039065,-252.80577775,9.996e-05,2]
[348389276,1736499039074,-548.51,9.996e-05,2]
[348389277,1736499039083,-218.4362023,9.996e-05,2]
[348389278,1736499039094,-535.4837977,9.996e-05,2]
[348389279,1736499039103,-148.8162037,9.996e-05,2]
[348389280,1736499039140,-86.59166711,9.996e-05,2]
[348389281,1736499039149,-528.05816,9.996e-05,2]
[348389282,1736499039158,-500.0,9.996e-05,2]
[348389283,1736499039167,-500.0,9.996e-05,2]
[348389284,1736499039176,-500.0,9.996e-05,2]
[348389285,1736499039185,-675.13,9.996e-05,2]
[348389286,1736499039194,-500.0,9.996e-05,2]
[348389287,1736499039202,-884.1,9.996e-05,2]
[348389288,1736499039211,-531.3,9.996e-05,2]
[348389289,1736499039221,-708.27,9.996e-05,2]
[348389290,1736499039231,-624.14,9.996e-05,2]
[348389291,1736499039241,-502.67342502,9.996e-05,2]
[348389292,1736499039250,-779.98,9.996e-05,2]
[348389293,1736499039259,-500.0,9.996e-05,2]
[348389294,1736499039268,-500.0,9.996e-05,2]
[348389295,1736499039277,-270.30286241,9.996e-05,2]
[348389296,1736499039287,-500.0,9.996e-05,2]
[348389297,1736499039298,-500.0,9.996e-05,2]
[348389298,1736499039308,-500.0,9.996e-05,2]
[348389299,1736499039317,-500.0,9.996e-05,2]
[348389300,1736499039326,-500.0,9.996e-05,2]
[348389301,1736499039335,-500.0,9.996e-05,2]
[348389302,1736499039345,-500.0,9.996e-05,2]
[348389303,1736499039356,-500.0,9.996e-05,2]
[348389304,1736499039366,-500.0,9.996e-05,2]
[348389305,1736499039375,-500.0,9.996e-05,2]
[348389306,1736499039385,-500.0,9.996e-05,2]
[348389307,1736499039395,-500.0,9.996e-05,2]
[348389309,1736499039405,-500.0,9.996e-05,2]
[348389310,1736499039415,-542.28,9.996e-05,2]
[348389311,1736499039424,-500.0,9.996e-05,2]
[348389312,1736499039434,-705.61,9.996e-05,2]
[348389313,1736499039444,-500.0,9.996e-05,2]
[348389314,1736499039454,-500.0,9.996e-05,2]
[348389317,1736499039466,-527.58316045,9.996e-05,2]
[348389318,1736499039477,-500.0,9.996e-05,2]
[348389319,1736499039486,-500.92485034,9.996e-05,2]
[348389320,1736499039494,-500.0,9.996e-05,2]
[348389321,1736499039503,-500.0,9.996e-05,2]
[348389322,1736499039514,-500.0,9.996e-05,2]
[348389323,1736499039523,-500.0,9.996e-05,2]
[348389324,1736499039532,-714.67,9.996e-05,2]
[348389325,1736499039542,-500.0,9.996e-05,2]
[348389326,1736499039551,-500.0,9.996e-05,2]
[348389327,1736499039561,-500.0,9.996e-05,2]
[348389328,1736499039570,-520.28,9.996e-05,2]
[348389329,1736499039579,-505.58,9.996e-05,2]
[348389330,1736499039588,-500.0,9.996e-05,2]
[348389331,1736499039597,-500.0,9.996e-05,2]
[348389332,1736499039607,-500.0,9.996e-05,2]
[348389333,1736499039615,-708.02,9.996e-05,2]
[348389334,1736499039625,-500.0,9.996e-05,2]
[348389335,1736499039635,-500.0,9.996e-05,2]
[348389336,1736499039644,-623.77,9.996e-05,2]
[348389337,1736499039653,-500.0,9.996e-05,2]
[348389338,1736499039662,-500.0,9.996e-05,2]
[348389339,1736499039671,-538.26,9.996e-05,2]
[348389340,1736499039680,-500.0,9.996e-05,2]
[348389341,1736499039689,-500.0,9.996e-05,2]
[348389342,1736499039698,-500.0,9.996e-05,2]
[348389343,1736499039708,-500.0,9.996e-05,2]
[348389344,1736499039717,-500.0,9.996e-05,2]
[348389345,1736499039726,-500.0,9.996e-05,2]
[348389346,1736499039735,-500.0,9.996e-05,2]
[348389347,1736499039744,-500.0,9.996e-05,2]
[348389348,1736499039753,-500.0,9.996e-05,2]
[348389349,1736499039762,-500.0,9.996e-05,2]
[348389350,1736499039771,-500.0,9.996e-05,2]
[348389351,1736499039779,-500.0,9.996e-05,2]
[348389352,1736499039790,-500.0,9.996e-05,2]
[348389353,1736499039799,-500.0,9.996e-05,2]
[348389354,1736499039807,-500.0,9.996e-05,2]
[348389355,1736499039816,-758.37,9.996e-05,2]